Cogmind - Beta 13 @@@ ROGUE MODE // 2024.07.08 @ 00:09:32 Player: gigi283 Result: Smashed by cave-in Performance ------------- Evolutions (1) 500 Regions Visited (3) 600 Robots Destroyed (55) 275 Value Destroyed (1536) 1536 Prototype IDs (4) 80 Alien Tech Used (0) 0 Bonus (0) 0 TOTAL SCORE: 2991 Bonus ------- None Cogmind --------- Core Integrity 0/400 Matter 46/300 Energy 274/280 System Corruption 9% Temperature Cool (9) Movement Walking (190) Ox1 Location -9/Storage Parts ------- > --- POWER (1) -------- Heavy Ion Engine > --- PROPULSION (4) --- Aluminum Leg Aluminum Leg > --- UTILITY (2) ------ Large Storage Unit > --- WEAPON (2) ------- Rocket Launcher > --- INVENTORY (15) --- Heavy Ion Engine Sensor Array Improved Targeting Computer Hacking Suite Beam Rifle Pulse Rifle Heavy Assault Rifle Rocket Launcher Datajack Peak State ------------ > --- POWER ------------ Heavy Ion Engine > --- PROPULSION ------- Light Treads Aluminum Leg Improved Aluminum Leg Improved Aluminum Leg > --- UTILITY ---------- Improved Heat Sink Huge Storage Unit > --- WEAPON ----------- Pulse Rifle Pulse Rifle > --- INVENTORY -------- Heavy Ion Engine Light Treads Beam Rifle Rocket Launcher Rocket Launcher Datajack [Rating: 20] Favorites ----------- Power Heavy Ion Engine Engine Heavy Ion Engine Propulsion Aluminum Leg Treads Light Treads Leg Aluminum Leg Hover Unit Hover Unit Utility Huge Storage Unit Device Improved Heat Sink Storage Huge Storage Unit Processor Signal Interpreter Weapon Pulse Rifle Energy Gun Pulse Rifle Ballistic Gun Assault Rifle Launcher Grenade Launcher Build | -11 -10 -9 -9 ------- Run | Yrd Mat Mat Sto Slots Evolved 2 | . . 2 . Power . | . . . . Propulsion 2 | . . 2 . Utility . | . . . . Weapon . | . . . . Parts Attached 55 | 6 7 36 6 Power 5 | 1 . 4 . Engine 5 | 1 . 4 . Core . | . . . . Reactor . | . . . . Propulsion 22 | 2 2 18 . Treads 8 | 2 . 6 . Leg 13 | . 2 11 . Wheel . | . . . . Hover 1 | . . 1 . Flight . | . . . . Utility 8 | 1 2 4 1 Device 3 | . 1 1 1 Storage 4 | 1 1 2 . Processor 1 | . . 1 . Hackware . | . . . . Protection . | . . . . Artifact . | . . . . Weapon 20 | 2 3 10 5 Energy Gun 9 | 1 . 6 2 Energy Cannon . | . . . . Ballistic Gun 4 | 1 1 2 . Ballistic Cannon . | . . . . Launcher 7 | . 2 2 3 Special Weapon . | . . . . Impact Weapon . | . . . . Slashing Weapon . | . . . . Piercing Weapon . | . . . . Special Melee Weapon . | . . . . Unidentified Prototypes 2 | . . 2 . Parts Lost 15 | . 4 7 4 Power . | . . . . Propulsion 9 | . 2 5 2 Utility 2 | . . 1 1 Weapon 4 | . 2 1 1 Highest Loss Streak 4 | . 4 2 4 To Critical Strikes . | . . . . Average Slot Usage (%) 91 | . 93 90 98 Engine 11 | . 14 10 11 Treads 11 | . 12 13 . Leg 23 | . 15 24 43 Device 9 | . 9 9 10 Storage 11 | . 14 11 11 Energy Gun 13 | . 6 16 12 Ballistic Gun 5 | . 11 2 4 Launcher 3 | . 8 1 4 Naked Turns . | . . . . Heaviest Build 96 | 14 31 96 36 Greatest Support 80 | 40 40 80 43 Greatest Overweight (x) 14 | . 1 14 . Average Overweight (x) 1 | . . 1 . Largest Inventory Capacity 25 | 8 15 25 15 Average Capacity 19 | 6 10 23 15 Most Carried 13 | 3 6 13 11 Average Carried 6 | 1 4 7 9 Final Capacity 15 | 8 15 15 15 Final Carried 11 | 3 6 11 9 Class Distribution -------------------- 53% | Scavenger-Mutant 46% | Mutant Dominant Class ---------------- Mutant | -10/Materials Scavenger-Mutant | -9/Materials Scavenger-Mutant | -9/Storage Resources | -11 -10 -9 -9 ----------- Run | Yrd Mat Mat Sto Matter Collected 1032 | 187 286 559 . Remotely . | . . . . Salvage Created 1711 | . 546 1126 39 Parts 124 | . 38 80 6 Haulers Intercepted 4 | . 1 3 . Recyclers Shooed . | . . . . Parts Field Recycled . | . . . . Retrieved Matter . | . . . . Parts Self-Destructed . | . . . . Prevented . | . . . . Kills | -11 -10 -9 -9 ------- Run | Yrd Mat Mat Sto Combat Hostiles Destroyed 33 | . 12 21 . Guns 26 | . 10 16 . AOE 6 | . 2 4 . Classes Destroyed 10 | . 5 5 . Worker 3 | . 1 2 . Builder 4 | . 1 1 2 Hauler 4 | . 1 3 . Recycler 2 | . . 2 . Mechanic 1 | . . 1 . Operator 2 | . . 2 . Watcher 6 | . 2 4 . Grunt 25 | . 12 13 . Duelist 2 | . . 2 . Sentry 6 | . . 6 . Best Kill Streak 7 | . 5 7 2 Combat Bots Only 4 | . 4 4 . Max Kills in Single Turn 2 | . 1 2 1 Gunslinging 1 | . . 1 . Exploded 1 | . 1 1 . Melee . | . . . . Uniques/NPCs Destroyed . | . . . . Combat | -11 -10 -9 -9 -------- Run | Yrd Mat Mat Sto Hostile Shots Fired 234 | . 79 155 . Missed 79 | . 28 51 . Damage Taken 2906 | . 625 1625 656 Core 470 | . 58 246 166 Absorbed by Shields . | . . . . Regen/Repaired (Parts) 66 | . . . 66 Core Remaining (%) 88 | 100 76 . . Volleys Fired 172 | . 62 91 19 Largest 2 | . 2 2 2 Hottest 126 | . 70 126 119 Shots Fired 288 | . 100 153 35 Gun 253 | . 92 143 18 Cannon . | . . . . Launcher 35 | . 8 10 17 Special . | . . . . Kinetic 79 | . 55 24 . Thermal 174 | . 37 119 18 Explosive 35 | . 8 10 17 Electromagnetic . | . . . . Robot Hit Streak 12 | . 7 12 4 Robot Miss Streak 6 | . 6 4 1 Penetration Max . | . . . . Secondary Targets 4 | . 2 2 . Max Gunslinging Chain 1 | . 1 1 . Shots Hit Robots 160 | . 58 97 5 Core Hits 88 | . 34 52 2 Critical Kills . | . . . . Critical Parts Destroyed . | . . . . Critical Strikes 11 | . 2 8 1 Burn 11 | . 2 8 1 Melee Attacks . | . . . . Impact . | . . . . Slashing . | . . . . Piercing . | . . . . Sneak Attacks . | . . . . Combat Hostiles . | . . . . Follow-up Attacks . | . . . . Damage Inflicted 3572 | . 1157 2332 83 Guns 2368 | . 764 1521 83 Cannons . | . . . . Explosions 1176 | . 393 783 . Melee . | . . . . Ramming 28 | . . 28 . Kinetic 637 | . 436 201 . Thermal 1731 | . 328 1320 83 Explosive 1176 | . 393 783 . Electromagnetic . | . . . . Impact . | . . . . Slashing . | . . . . Piercing . | . . . . Highest Corruption 7 | . . . 7 Average Corruption 1 | . . . 1 Corruption Purged . | . . . . Corruption Blocked . | . . . . Overload Shots . | . . . . Overflow Damage 13 | . . 8 5 Projectiles . | . . . . Explosions 13 | . . 8 5 Melee . | . . . . Knockbacks . | . . . . Impact . | . . . . Kinetic . | . . . . Secondary . | . . . . Self-Inflicted Damage 283 | . . 170 113 Shots 10 | . . 5 5 Rammed 3 | . . 3 . Targets Rammed 4 | . . 4 . Kicked 1 | . . 1 . Crushed . | . . . . Highest Temperature 250 | . 250 120 63 Average Temperature 52 | . 91 30 25 Received Heat Transfer 978 | . 342 636 . Siege Activations . | . . . . Robots Corrupted . | . . . . Combat Hostiles . | . . . . Parts Fried . | . . . . Impact Corruptions . | . . . . Robots Melted 1 | . . 1 . Combat Hostiles 1 | . . 1 . Parts Melted 2 | . . 2 . Heat Transferred 4884 | . 1110 3515 259 Parts Sabotaged . | . . . . Parts Stolen . | . . . . Parts Stripped . | . . . . Power Chain Reactions . | . . . . Alert | -11 -10 -9 -9 ------- Run | Yrd Mat Mat Sto Peak Influence 360 | . 308 360 191 Initial 125 | . . 104 125 Average 159 | . 160 166 157 Maximum Alert Level 1 | . 1 1 . Low Security (%) 75 | 100 65 74 100 Level 1 24 | . 34 25 . Level 2 . | . . . . Level 3 . | . . . . Level 4 . | . . . . Level 5 . | . . . . High Security . | . . . . Max Security . | . . . . Squads Dispatched 4 | . 4 . . Investigation 2 | . 2 . . Extermination . | . . . . Reinforcement 2 | . 2 . . Assault . | . . . . Garrison . | . . . . Intercept . | . . . . Searches Triggered . | . . . . Construction Impeded . | . . . . Haulers Reinforced . | . . . . Active Scanning Responses . | . . . . Cargo Convoy Interrupts . | . . . . Stealth | -11 -10 -9 -9 --------- Run | Yrd Mat Mat Sto Distress Signals 5 | . . 5 . Communications Jammed . | . . . . Distress Signals . | . . . . Times Spotted 49 | . 17 32 . Peak Tracking Total 6 | . 6 5 . Tactical Retreats . | . . . . Traps | -11 -10 -9 -9 ------- Run | Yrd Mat Mat Sto Traps Triggered 3 | . 2 . 1 Indirectly . | . . . . Trap Hack Attempts . | . . . . Triggered . | . . . . Disarmed . | . . . . Reprogrammed . | . . . . Reused . | . . . . Traps Extracted . | . . . . Installed . | . . . . Triggered . | . . . . Machines | -11 -10 -9 -9 ---------- Run | Yrd Mat Mat Sto Machines Disabled 6 | . 2 3 1 Max in Single Turn 2 | . 2 2 1 Machines Repaired . | . . . . Machines Dismantled . | . . . . Machines Sabotaged . | . . . . Overloaded Fab Kills . | . . . . Hacking | -11 -10 -9 -9 --------- Run | Yrd Mat Mat Sto Machines Accessed 9 | . 2 4 3 Terminals 8 | . 2 4 2 Fabricators . | . . . . Repair Stations 1 | . . . 1 Recycling Units . | . . . . Scanalyzers . | . . . . Garrison Access . | . . . . Total Hacks 18 | . 3 8 7 Successful 10 | . 2 6 2 Failed 8 | . 1 2 5 Catastrophic . | . . . . Database Lockouts . | . . . . Manual 8 | . 2 4 2 Terminals 16 | . 3 8 5 Fabricators . | . . . . Repair Stations 2 | . . . 2 Recycling Units . | . . . . Scanalyzers . | . . . . Garrison Access . | . . . . Terminal Hacks 5 | . 1 4 . Record 1 | . . 1 . Prototype ID Bank 1 | . . 1 . Emergency Access Points 1 | . . 1 . Zone Layout 2 | . 1 1 . Fabricator Hacks . | . . . . Repair Station Hacks 2 | . . . 2 Scan Component 1 | . . . 1 Repair 1 | . . . 1 Recycling Unit Hacks . | . . . . Scanalyzer . | . . . . Garrison Access Hacks . | . . . . Unauthorized Hacks 3 | . 1 2 . Terminals 3 | . 1 2 . Botnet 3 | . 1 2 . Fabricators . | . . . . Repair Stations . | . . . . Recycling Units . | . . . . Scanalyzers . | . . . . Garrison Access . | . . . . Data Cores Recovered 2 | . . 2 . Used . | . . . . Hacking Detections 4 | . . 3 1 Full Trace Events . | . . . . Feedback Events . | . . . . Feedback Blocked . | . . . . Robot Schematics Acquired . | . . . . Robots Built . | . . . . Authchips . | . . . . Time . | . . . . Total Robot Build Rating . | . . . . Part Schematics Acquired . | . . . . Parts Built . | . . . . Authchips . | . . . . Time . | . . . . Total Part Build Rating . | . . . . Parts Repaired 1 | . . . 1 Time 16 | . . . 16 Parts Recycled . | . . . . Recycled Matter . | . . . . Retrieved Matter . | . . . . Retrieved Components . | . . . . Parts Scanalyzed . | . . . . Part Schematics Acquired . | . . . . Parts Damaged . | . . . . Bothacking | -11 -10 -9 -9 ------------ Run | Yrd Mat Mat Sto Used RIF Installer . | . . . . Robots Hacked . | . . . . Non-combat . | . . . . Combat . | . . . . Robot Hacks Applied . | . . . . Relay Couplers Released . | . . . . Fabnet Peak Effective % . | . . . . Robots Rewired . | . . . . Allies Hacked . | . . . . Hacks Repelled . | . . . . Allies | -11 -10 -9 -9 -------- Run | Yrd Mat Mat Sto Total Allies . | . . . . Largest Group . | . . . . Highest-Rated Group . | . . . . Highest-Rated Ally . | . . . . Total Orders . | . . . . Ally Attacks . | . . . . Total Damage . | . . . . Kills . | . . . . Allies Corrupted . | . . . . Allies Melted . | . . . . Intel | -11 -10 -9 -9 ------- Run | Yrd Mat Mat Sto Robot Analysis Total . | . . . . Derelict Logs Recovered . | . . . . Drone Launches . | . . . . Drone Recoveries . | . . . . Exploration | -11 -10 -9 -9 ------------- Run | Yrd Mat Mat Sto Turns Passed 2553 | 81 588 1675 209 Spaces Moved 931 | 47 267 509 108 Core 5 | 5 . . . Treads 255 | 42 97 116 . Legs 670 | . 170 392 108 Wheels . | . . . . Hover 1 | . . 1 . Flight . | . . . . Fastest Speed 50 | 50 120 120 120 Average Speed 204 | 148 153 254 120 Slowest Speed 930 | 160 190 930 120 Overloaded Moves . | . . . . Propulsion Burnouts . | . . . . Robots Hopped . | . . . . Cave-ins Triggered 2 | . . . 2 Exploration Rate (%) 33 | 3 70 45 17 Regions Visited 3 Branch Regions 1 Pre-discovered Areas . | . . . . Known Exits Taken 1 | . . 1 . Unknown Exits Taken 2 | 1 1 . . Scrap Searched . | . . . . Spaces Dug 44 | . . . 44 Terrain Destroyed 222 | . 71 84 67 Melee . | . . . . Projectile . | . . . . AOE 222 | . 71 84 67 Terrain Rammed . | . . . . Walls Destroyed . | . . . . Machines Disabled . | . . . . Actions | -11 -10 -9 -9 --------- Run | Yrd Mat Mat Sto Total 1282 | 55 345 727 155 Wait 54 | . . 38 16 Move 927 | 46 266 508 107 Hop . | . . . . Pick Up 34 | 3 7 23 1 Fast Attach 17 | 6 2 9 . Attach 19 | . 4 10 5 Detach 10 | . 1 5 4 Swap 19 | . 1 17 1 Drop 26 | . 2 22 2 Fire 172 | . 62 91 19 Melee . | . . . . Ram . | . . . . Kick 1 | . . 1 . Crush 3 | . . 3 . Escape Stasis . | . . . . Rewire . | . . . . Trap . | . . . . Miscellaneous . | . . . . Route ------- -11/Scrapyard -10/Materials (discovered 3 exits: *Mat x2 / [*Min]) -9/Materials (discovered 2 exits: *Sto x2) -9/Storage History --------- Turn | Location | Event 3 | -11/Scrapyard | Discovered new exit (range 15) 82 | -11/Scrapyard | Entered Materials 275 | -10/Materials | Discovered new exit (range 15) 306 | -10/Materials | Build established: Mutant 386 | -10/Materials | Lost 4 parts (2n2w) 404 | -10/Materials | Discovered new exit (range 8) 626 | -10/Materials | Discovered new exit (range 16) 670 | -10/Materials | Entered another Materials area 670 | -9/Materials | Evolved 2 slots: Propulsion x2 1494 | -9/Materials | Build established: Scavenger-Mutant 1681 | -9/Materials | Discovered new exit (range 11) 1913 | -9/Materials | Core integrity fell below 50% 2264 | -9/Materials | Discovered new exit (range 15) 2342 | -9/Materials | Identified exit to Storage 2345 | -9/Materials | Entered Storage 2373 | -9/Storage | Repaired Rocket Launcher 2549 | -9/Storage | Crushed by falling debris 2554 | -9/Storage | Crushed by falling debris 2554 | -9/Storage | Smashed by cave-in Last Messages --------------- 02506_ R-06 Scavenger collects Structural Scanner. 02507_ K-01 Serf collects debris. 02510_ R-06 Scavenger collects Terrain Scanner. 02510_ K-01 Serf collects debris. 02513_ The unstable cave ceiling collapses. 02513_ K-01 Serf collects debris. 02522_ The unstable cave ceiling collapses. 02542_ Imp. Heat Sink destroyed. 02542_ Destroyed Imp. Heat Sink. 02545_ The unstable cave ceiling collapses. 02549_ Crushed by falling debris. 02549_ Aluminum Leg destroyed. 02549_ System corrupted by crushing effect (+4). 02549_ Beam Rifle destroyed. 02549_ System corrupted by crushing effect (+2). 02554_ The unstable cave ceiling collapses. 02554_ Crushed by falling debris. 02554_ Imp. Aluminum Leg destroyed. 02554_ System corrupted by crushing effect (+2). Map ----- +----------------------------------------------------+ | ????# # #?????????? | | ????# # #?????????? | | ????# # #?????????? | | ????# # #?????????? | | ????# # #?????????? | | ????# ########?????????? | | ????# #????????????????? | | ????# % #????????????????? | | ????# #????????????????? | | ???## #########????????? | | ???#T # #????????? | | ???## # #????????? | | ????# ^^# #????????? | | ????# ^# #????????? | | ????# # #????????? | | ????# # #????????? | | ????# + k #????????? | | ???## %# #????????? | | ?### ==# #????????? | | ## # #????????? | | #????????? | | ########????????? | | ##??????????????? | | #??????????????? | | #"""####??????????????? | | @ #?????????????????????? | | #?????????????????????? | | # #?????????????????????? | | #?????????????????????? | | ##????????????????????? | | # #????????????????????? | | # #????????????????????? | | #####????????????????????? | | ?????????????????????????? | | ?????????????????????????? | | ?????????????????????????? | | ?????????????????????????? | | ?????????????????????????? | | ?????????????????????????? | | ?????????????????????????? | | ?????????????????????????? | | ?????????????????????????? | | ?????????????????????????? | | | | | | | | | | | | | | | +----------------------------------------------------+ Best States ------------- Heat Dissipation 42 Energy Generation 14 Energy Capacity 280 Matter Stores 300 Matter Capacity 300 Sight Range 16 Robot Scan Range 14 Terrain Scan Density 10 Evasion (%) 55 Recoil Reduction 4 Item Schematics ----------------- None Robot Schematics ------------------ None Fabricated ------------ Nothing Alien Tech Used ----------------- None Achievements -------------- None Challenges ------------ None Game ------ Seed DimensionalSurgeAxe Manual? 0 Play Time 00:26:25 Cumulative 25.4 hours Start 2024.07.07 @ 23:43:40 End 2024.07.08 @ 00:09:32 Sessions 1 Manual Loads 0 Difficulty Rogue Special Mode None Game No. 38 Rogue 38 Adventurer 0 Explorer 0 Win Type - Total 0 Types 0/0/0/0/0/0/0/0/0 Lore% 14 Gallery% 23 Achievement% 20 Wizard Run 0 Options --------- Layout 2 ASCII 0 Keyboard 0 Movement Mouse Keybinds 0 Fullscreen 2 Font 24/Crisp Map View 50x44 Zoom Use 0% Tactical HUD 1 Map Filters NONE Filters NONE Steam 1 RUN: 98fe652f-78b5-487e-94e5-70b608cd620d